[Event "*** SCC Grand Prix: Titled Tuesday Blitz"]
[Site "Chess.com"]
[Date "2020.09.08"]
[Round "2"]
[White "beto-betun"]
[Black "mortngabriel"]
[Result "0-1"]
[WhiteElo "2133"]
[BlackElo "2401"]
[TimeControl "180+1"]
[EndTime "10:18:37 PDT"]
[Termination "mortngabriel won by resignation"]

1. d4 {[%clk 0:03:00.9]} 1... Nf6 {[%clk 0:02:59.8]} 2. Nf3 {[%clk 0:03:00.2]}
2... c5 {[%clk 0:02:59.9]} 3. d5 {[%clk 0:02:56]} 3... b5 {[%clk 0:02:56.1]} 4.
g3 {[%clk 0:02:54.6]} 4... Bb7 {[%clk 0:02:55.3]} 5. c4 {[%clk 0:02:20.6]} 5...
bxc4 {[%clk 0:02:56.2]} 6. Nc3 {[%clk 0:02:19.9]} 6... e6 {[%clk 0:02:50.4]} 7.
e4 {[%clk 0:02:19.5]} 7... exd5 {[%clk 0:02:50.4]} 8. exd5 {[%clk 0:02:20.2]}
8... d6 {[%clk 0:02:45.5]} 9. Bg2 {[%clk 0:02:13.4]} 9... Be7 {[%clk 0:02:45.7]}
10. O-O {[%clk 0:02:13.1]} 10... O-O {[%clk 0:02:46.6]} 11. Nd2 {[%clk
0:01:53.4]} 11... Nbd7 {[%clk 0:02:42.9]} 12. Nxc4 {[%clk 0:01:51.5]} 12... Ba6
{[%clk 0:02:42.4]} 13. b3 {[%clk 0:01:33.5]} 13... Nb6 {[%clk 0:02:30.3]} 14.
Nxb6 {[%clk 0:01:32.8]} 14... axb6 {[%clk 0:02:23.9]} 15. Re1 {[%clk 0:01:32.5]}
15... b5 {[%clk 0:02:23.4]} 16. Bb2 {[%clk 0:01:24.5]} 16... b4 {[%clk
0:02:20.6]} 17. Ne4 {[%clk 0:01:18.4]} 17... Nxe4 {[%clk 0:02:20.3]} 18. Bxe4
{[%clk 0:01:19]} 18... Bf6 {[%clk 0:02:18.7]} 19. Qc2 {[%clk 0:01:15.7]} 19...
g6 {[%clk 0:02:17.5]} 20. a3 {[%clk 0:00:49.4]} 20... bxa3 {[%clk 0:02:13.7]}
21. Rxa3 {[%clk 0:00:49.2]} 21... Re8 {[%clk 0:02:10.5]} 22. Rea1 {[%clk
0:00:37.1]} 22... Bb7 {[%clk 0:01:19.7]} 23. Rxa8 {[%clk 0:00:29.5]} 23... Bxa8
{[%clk 0:01:20.6]} 24. Rxa8 {[%clk 0:00:24.5]} 24... Qxa8 {[%clk 0:01:21.5]} 25.
Bxf6 {[%clk 0:00:24.5]} 25... Qa5 {[%clk 0:01:17.7]} 26. Bg2 {[%clk 0:00:21.9]}
26... Re1+ {[%clk 0:01:11.5]} 27. Bf1 {[%clk 0:00:21.4]} 27... Qa6 {[%clk
0:00:53.3]} 28. Qc4 {[%clk 0:00:18.3]} 28... Qc8 {[%clk 0:00:50.9]} 29. Kg2
{[%clk 0:00:16.2]} 29... Qf5 {[%clk 0:00:49.4]} 30. Bc3 {[%clk 0:00:08.4]} 30...
Re4 {[%clk 0:00:46.7]} 31. Qd3 {[%clk 0:00:05.2]} 31... h5 {[%clk 0:00:19.6]}
32. f3 {[%clk 0:00:05.3]} 32... Re8 {[%clk 0:00:19]} 33. Qxf5 {[%clk 0:00:05.5]}
33... gxf5 {[%clk 0:00:19.9]} 34. Kf2 {[%clk 0:00:03.9]} 34... f4 {[%clk
0:00:20.8]} 35. gxf4 {[%clk 0:00:03.3]} 35... Rb8 {[%clk 0:00:21]} 36. Bc4
{[%clk 0:00:02.2]} 36... Kh7 {[%clk 0:00:21.3]} 37. Kg3 {[%clk 0:00:02.7]} 37...
Kg6 {[%clk 0:00:20.9]} 38. h4 {[%clk 0:00:01.6]} 38... Kf5 {[%clk 0:00:20.8]}
39. Bd2 {[%clk 0:00:02]} 39... Rg8+ {[%clk 0:00:20.3]} 40. Kf2 {[%clk
0:00:01.5]} 40... Rb8 {[%clk 0:00:20.8]} 41. Bc3 {[%clk 0:00:02.1]} 41... Kg6
{[%clk 0:00:19.7]} 42. Ba5 {[%clk 0:00:02.7]} 42... Kh6 {[%clk 0:00:19.8]} 43.
Bc7 {[%clk 0:00:03.2]} 43... Ra8 {[%clk 0:00:20.3]} 44. Bxd6 {[%clk 0:00:03.8]}
44... Ra2+ {[%clk 0:00:21.2]} 45. Ke3 {[%clk 0:00:03.8]} 45... Rh2 {[%clk
0:00:21]} 46. Be5 {[%clk 0:00:04.3]} 46... Rxh4 {[%clk 0:00:21.3]} 47. d6 {[%clk
0:00:04.8]} 47... Rh1 {[%clk 0:00:19.2]} 48. d7 {[%clk 0:00:04.7]} 48... Re1+
{[%clk 0:00:19.7]} 49. Kd3 {[%clk 0:00:03.6]} 49... Rd1+ {[%clk 0:00:19.8]} 50.
Ke4 {[%clk 0:00:02.1]} 50... Rxd7 {[%clk 0:00:20.7]} 51. Kf5 {[%clk 0:00:02.8]}
51... Rb7 {[%clk 0:00:19.9]} 52. Kf6 {[%clk 0:00:03.7]} 52... h4 {[%clk
0:00:19.3]} 53. Bxf7 {[%clk 0:00:04.6]} 53... h3 {[%clk 0:00:19.8]} 54. Bd5
{[%clk 0:00:04.9]} 54... h2 {[%clk 0:00:19.5]} 55. f5 {[%clk 0:00:05.8]} 55...
h1=Q {[%clk 0:00:19]} 56. f4 {[%clk 0:00:06.7]} 56... Qxd5 {[%clk 0:00:18.6]}
0-1

[Event "*** SCC Grand Prix: Titled Tuesday Blitz"]
[Site "Chess.com"]
[Date "2020.09.08"]
[Round "2"]
[White "ExcitingTrap"]
[Black "Rodalquilar"]
[Result "0-1"]
[WhiteElo "2296"]
[BlackElo "2638"]
[TimeControl "180+1"]
[EndTime "10:18:38 PDT"]
[Termination "Rodalquilar won by resignation"]

1. e4 {[%clk 0:03:00.9]} 1... d5 {[%clk 0:02:59.6]} 2. exd5 {[%clk 0:03:00.7]}
2... Qxd5 {[%clk 0:03:00.5]} 3. Nc3 {[%clk 0:03:00.2]} 3... Qa5 {[%clk
0:03:00.6]} 4. d4 {[%clk 0:03:00.3]} 4... Nf6 {[%clk 0:03:01]} 5. Bc4 {[%clk
0:02:57.4]} 5... Bg4 {[%clk 0:02:59.3]} 6. Nf3 {[%clk 0:02:56.6]} 6... Nc6
{[%clk 0:02:55.3]} 7. d5 {[%clk 0:02:41.6]} 7... O-O-O {[%clk 0:02:46.8]} 8. Bd2
{[%clk 0:02:38]} 8... Qc5 {[%clk 0:01:40.2]} 9. dxc6 {[%clk 0:02:05.2]} 9...
Qxc4 {[%clk 0:01:38]} 10. cxb7+ {[%clk 0:02:05.2]} 10... Kxb7 {[%clk 0:01:33.2]}
11. Qe2 {[%clk 0:02:05.2]} 11... Qxe2+ {[%clk 0:01:31]} 12. Nxe2 {[%clk
0:02:05.3]} 12... Bxf3 {[%clk 0:01:25.8]} 13. gxf3 {[%clk 0:02:06.2]} 13... e5
{[%clk 0:01:16.4]} 14. O-O-O {[%clk 0:02:03.7]} 14... Bc5 {[%clk 0:01:12.4]} 15.
Be3 {[%clk 0:02:01.4]} 15... Bb6 {[%clk 0:01:12.9]} 16. Ng3 {[%clk 0:01:57.1]}
16... Nd5 {[%clk 0:01:09.9]} 17. Nf5 {[%clk 0:01:42.8]} 17... Nxe3 {[%clk
0:00:57]} 18. Nxe3 {[%clk 0:01:37.6]} 18... g6 {[%clk 0:00:51.3]} 19. Rd2 {[%clk
0:01:16.5]} 19... Rd4 {[%clk 0:00:35.5]} 20. Rxd4 {[%clk 0:01:03.1]} 20... Bxd4
{[%clk 0:00:25.7]} 21. c3 {[%clk 0:01:03.2]} 21... Bc5 {[%clk 0:00:25.7]} 22.
Rd1 {[%clk 0:00:59.9]} 22... Kc6 {[%clk 0:00:24.7]} 23. b4 {[%clk 0:00:45.7]}
23... Bd6 {[%clk 0:00:21.2]} 24. Kc2 {[%clk 0:00:41.5]} 24... Re8 {[%clk
0:00:21.3]} 25. Nc4 {[%clk 0:00:38.6]} 25... Re6 {[%clk 0:00:19.5]} 26. Re1
{[%clk 0:00:31.2]} 26... Rf6 {[%clk 0:00:14.2]} 27. Re3 {[%clk 0:00:26.4]} 27...
Rf4 {[%clk 0:00:14.4]} 28. Na5+ {[%clk 0:00:23.1]} 28... Kd7 {[%clk 0:00:09.5]}
29. Kb3 {[%clk 0:00:20]} 29... Rh4 {[%clk 0:00:09.3]} 30. c4 {[%clk 0:00:19.2]}
30... c6 {[%clk 0:00:05.1]} 31. c5 {[%clk 0:00:18.7]} 31... Bc7 {[%clk
0:00:05.6]} 32. Nc4 {[%clk 0:00:18.7]} 32... f6 {[%clk 0:00:05.3]} 33. Rd3+
{[%clk 0:00:18.4]} 33... Ke6 {[%clk 0:00:04.8]} 34. a4 {[%clk 0:00:12.5]} 34...
Rxh2 {[%clk 0:00:05]} 35. Rd2 {[%clk 0:00:12.9]} 35... Rh3 {[%clk 0:00:05]} 36.
Rd3 {[%clk 0:00:12.3]} 36... e4 {[%clk 0:00:05.6]} 37. Re3 {[%clk 0:00:11.4]}
37... Rxf3 {[%clk 0:00:06]} 38. b5 {[%clk 0:00:10.7]} 38... Rxe3+ {[%clk
0:00:05.8]} 39. Nxe3 {[%clk 0:00:10.3]} 39... cxb5 {[%clk 0:00:04.9]} 40. axb5
{[%clk 0:00:10.6]} 40... h5 {[%clk 0:00:05.8]} 41. Nc4 {[%clk 0:00:10.4]} 41...
h4 {[%clk 0:00:06]} 42. Ne3 {[%clk 0:00:09.9]} 42... h3 {[%clk 0:00:06]} 43. Nf1
{[%clk 0:00:08.6]} 43... h2 {[%clk 0:00:06]} 44. Nxh2 {[%clk 0:00:08.9]} 44...
Bxh2 {[%clk 0:00:06.9]} 45. b6 {[%clk 0:00:09.3]} 45... axb6 {[%clk 0:00:06.9]}
46. cxb6 {[%clk 0:00:10.2]} 46... Kd7 {[%clk 0:00:07.3]} 47. Kc4 {[%clk
0:00:10.6]} 47... Kc6 {[%clk 0:00:07.7]} 48. b7 {[%clk 0:00:10.8]} 48... Kxb7
{[%clk 0:00:07.7]} 49. Kd5 {[%clk 0:00:11.5]} 49... f5 {[%clk 0:00:08.2]} 50.
Ke6 {[%clk 0:00:11.6]} 50... f4 {[%clk 0:00:08.5]} 51. Kd5 {[%clk 0:00:11.7]}
51... e3 {[%clk 0:00:09.1]} 0-1

[Event "*** SCC Grand Prix: Titled Tuesday Blitz"]
[Site "Chess.com"]
[Date "2020.09.08"]
[Round "2"]
[White "Elegance_Riks"]
[Black "ViktoriyaTarasova"]
[Result "1/2-1/2"]
[WhiteElo "2613"]
[BlackElo "2221"]
[TimeControl "180+1"]
[EndTime "10:18:39 PDT"]
[Termination "Game drawn by repetition"]

1. d4 {[%clk 0:02:01.7]} 1... Nf6 {[%clk 0:02:57.4]} 2. Bg5 {[%clk 0:02:01.1]}
2... d5 {[%clk 0:02:54.6]} 3. e3 {[%clk 0:01:56.7]} 3... Bf5 {[%clk 0:02:53.2]}
4. Bd3 {[%clk 0:01:52.8]} 4... Bxd3 {[%clk 0:02:52.7]} 5. Qxd3 {[%clk
0:01:52.9]} 5... c6 {[%clk 0:02:51.2]} 6. Nd2 {[%clk 0:01:52.3]} 6... e6 {[%clk
0:02:50.5]} 7. Ngf3 {[%clk 0:01:52]} 7... Be7 {[%clk 0:02:51.1]} 8. O-O {[%clk
0:01:51.5]} 8... Nbd7 {[%clk 0:02:49.9]} 9. c4 {[%clk 0:01:51.6]} 9... O-O
{[%clk 0:02:48.9]} 10. Rad1 {[%clk 0:01:50.4]} 10... h6 {[%clk 0:02:48.5]} 11.
Bh4 {[%clk 0:01:50.3]} 11... Rc8 {[%clk 0:02:40]} 12. b3 {[%clk 0:01:32]} 12...
a6 {[%clk 0:02:38.7]} 13. Rfe1 {[%clk 0:01:31.7]} 13... Re8 {[%clk 0:02:32.1]}
14. h3 {[%clk 0:01:29.3]} 14... Bb4 {[%clk 0:02:12.8]} 15. Re2 {[%clk
0:01:24.6]} 15... Qc7 {[%clk 0:02:00]} 16. Bxf6 {[%clk 0:01:07.5]} 16... Nxf6
{[%clk 0:01:59]} 17. e4 {[%clk 0:01:07.9]} 17... Bxd2 {[%clk 0:01:55.9]} 18.
Nxd2 {[%clk 0:01:07.8]} 18... dxe4 {[%clk 0:01:52.7]} 19. Nxe4 {[%clk
0:01:07.7]} 19... Nxe4 {[%clk 0:01:53.4]} 20. Qxe4 {[%clk 0:01:08]} 20... Rcd8
{[%clk 0:01:53.3]} 21. Red2 {[%clk 0:01:05]} 21... Re7 {[%clk 0:01:51.4]} 22.
Qe5 {[%clk 0:01:04]} 22... Red7 {[%clk 0:01:45.3]} 23. Qxc7 {[%clk 0:00:59.3]}
23... Rxc7 {[%clk 0:01:45.5]} 24. f4 {[%clk 0:00:59.5]} 24... Rcd7 {[%clk
0:01:44.4]} 25. Kf2 {[%clk 0:00:59.5]} 25... Kf8 {[%clk 0:01:38.1]} 26. Ke3
{[%clk 0:00:59.8]} 26... Ke7 {[%clk 0:01:38.8]} 27. g4 {[%clk 0:01:00]} 27... g6
{[%clk 0:01:37.1]} 28. b4 {[%clk 0:00:53]} 28... a5 {[%clk 0:01:31.1]} 29. bxa5
{[%clk 0:00:37.2]} 29... Ra8 {[%clk 0:01:30.8]} 30. Rb1 {[%clk 0:00:37.3]} 30...
Rxa5 {[%clk 0:01:30.7]} 31. Rb3 {[%clk 0:00:37.6]} 31... Kd8 {[%clk 0:01:21.7]}
32. Rdb2 {[%clk 0:00:37.8]} 32... Kc8 {[%clk 0:01:21.7]} 33. Rc2 {[%clk
0:00:35.7]} 33... h5 {[%clk 0:01:14]} 34. Rcb2 {[%clk 0:00:33]} 34... Re7 {[%clk
0:00:46]} 35. g5 {[%clk 0:00:32.6]} 35... Rd7 {[%clk 0:00:45.1]} 36. h4 {[%clk
0:00:32.9]} 36... Ra4 {[%clk 0:00:44.6]} 37. Rc2 {[%clk 0:00:31.9]} 37... Ra5
{[%clk 0:00:41.1]} 38. a3 {[%clk 0:00:32]} 38... Ra4 {[%clk 0:00:30.7]} 39. Rcc3
{[%clk 0:00:31.2]} 39... Ra5 {[%clk 0:00:29.3]} 40. Rb4 {[%clk 0:00:31.5]} 40...
c5 {[%clk 0:00:25.8]} 41. dxc5 {[%clk 0:00:30]} 41... Rxc5 {[%clk 0:00:26.5]}
42. Rd3 {[%clk 0:00:29.3]} 42... Rxd3+ {[%clk 0:00:23.8]} 43. Kxd3 {[%clk
0:00:30.2]} 43... Rf5 {[%clk 0:00:23.5]} 44. Ke4 {[%clk 0:00:30.5]} 44... Ra5
{[%clk 0:00:23.5]} 45. a4 {[%clk 0:00:30.3]} 45... Kc7 {[%clk 0:00:20.8]} 46.
Kd4 {[%clk 0:00:29.5]} 46... Rf5 {[%clk 0:00:19.8]} 47. Ke3 {[%clk 0:00:29.2]}
47... Ra5 {[%clk 0:00:20.4]} 48. Ke4 {[%clk 0:00:26.5]} 48... Kc6 {[%clk
0:00:20.7]} 49. Kd3 {[%clk 0:00:23.9]} 49... Rf5 {[%clk 0:00:18.8]} 50. Ke3
{[%clk 0:00:23.7]} 50... Ra5 {[%clk 0:00:19.2]} 51. Ke4 {[%clk 0:00:20.6]} 51...
Kc7 {[%clk 0:00:13.1]} 52. Kd3 {[%clk 0:00:20.3]} 52... Rf5 {[%clk 0:00:12.7]}
53. Ke3 {[%clk 0:00:20.7]} 53... Ra5 {[%clk 0:00:13.2]} 54. Kf3 {[%clk
0:00:20.4]} 54... Kc6 {[%clk 0:00:12.9]} 55. Ke2 {[%clk 0:00:20.7]} 55... Kc7
{[%clk 0:00:13.1]} 56. Kd3 {[%clk 0:00:20.7]} 56... Rf5 {[%clk 0:00:13]} 57. Ke3
{[%clk 0:00:20.3]} 1/2-1/2

[Event "*** SCC Grand Prix: Titled Tuesday Blitz"]
[Site "Chess.com"]
[Date "2020.09.08"]
[Round "2"]
[White "VerdeNotte"]
[Black "GM_LOADING"]
[Result "1-0"]
[WhiteElo "2856"]
[BlackElo "2544"]
[TimeControl "180+1"]
[EndTime "10:18:40 PDT"]
[Termination "VerdeNotte won by resignation"]

1. c4 {[%clk 0:03:00.9]} 1... e6 {[%clk 0:02:59.7]} 2. g3 {[%clk 0:03:01.1]}
2... Nf6 {[%clk 0:02:58.1]} 3. Bg2 {[%clk 0:03:01.3]} 3... d5 {[%clk 0:02:56.6]}
4. Nf3 {[%clk 0:03:01.5]} 4... d4 {[%clk 0:02:56.2]} 5. O-O {[%clk 0:02:57.9]}
5... c5 {[%clk 0:02:56.7]} 6. e3 {[%clk 0:02:52.5]} 6... Nc6 {[%clk 0:02:56.8]}
7. d3 {[%clk 0:02:48.8]} 7... Bd6 {[%clk 0:02:52]} 8. exd4 {[%clk 0:02:48.1]}
8... cxd4 {[%clk 0:02:52.3]} 9. Bg5 {[%clk 0:02:48]} 9... h6 {[%clk 0:02:52.9]}
10. Bxf6 {[%clk 0:02:48]} 10... Qxf6 {[%clk 0:02:53.8]} 11. Nbd2 {[%clk
0:02:48.2]} 11... Qe7 {[%clk 0:02:53.2]} 12. a3 {[%clk 0:02:40.4]} 12... a5
{[%clk 0:02:52.7]} 13. Qa4 {[%clk 0:02:40.2]} 13... O-O {[%clk 0:02:50.7]} 14.
b4 {[%clk 0:02:37.1]} 14... Qc7 {[%clk 0:02:23.4]} 15. c5 {[%clk 0:02:32.2]}
15... Be7 {[%clk 0:02:21.2]} 16. b5 {[%clk 0:02:31.4]} 16... Ne5 {[%clk
0:02:21.1]} 17. Nxe5 {[%clk 0:02:02.5]} 17... Qxe5 {[%clk 0:02:22]} 18. c6
{[%clk 0:01:48.4]} 18... bxc6 {[%clk 0:01:53.2]} 19. Bxc6 {[%clk 0:01:47.4]}
19... Rb8 {[%clk 0:01:46.8]} 20. Nc4 {[%clk 0:01:44.1]} 20... Qc5 {[%clk
0:01:40.9]} 21. Rfc1 {[%clk 0:01:39.5]} 21... Bb7 {[%clk 0:01:26.8]} 22. Nxa5
{[%clk 0:01:28.5]} 22... Qa7 {[%clk 0:01:24.6]} 23. b6 {[%clk 0:01:25.2]} 23...
Qa6 {[%clk 0:01:02.6]} 24. Nxb7 {[%clk 0:01:23.2]} 24... Qxa4 {[%clk 0:01:01.2]}
25. Bxa4 {[%clk 0:01:23.1]} 25... Rxb7 {[%clk 0:01:01.7]} 26. Rab1 {[%clk
0:00:54.8]} 26... Rfb8 {[%clk 0:00:56.9]} 27. Rc6 {[%clk 0:00:51.7]} 27... Bxa3
{[%clk 0:00:25.1]} 28. Bd1 {[%clk 0:00:31.9]} 28... Be7 {[%clk 0:00:25]} 29. Bf3
{[%clk 0:00:23.8]} 29... Bd8 {[%clk 0:00:25.3]} 30. Rd6 {[%clk 0:00:21.7]} 30...
Be7 {[%clk 0:00:16.1]} 31. Bxb7 {[%clk 0:00:18.4]} 31... Bxd6 {[%clk 0:00:16.5]}
32. Bc6 {[%clk 0:00:19]} 32... Kf8 {[%clk 0:00:16.6]} 33. f4 {[%clk 0:00:17.7]}
33... Ke7 {[%clk 0:00:16.7]} 34. Kf2 {[%clk 0:00:17.7]} 34... Bc5 {[%clk
0:00:16.8]} 35. b7 {[%clk 0:00:17.8]} 35... Kd6 {[%clk 0:00:17.3]} 36. Be4
{[%clk 0:00:16.7]} 36... Kc7 {[%clk 0:00:17.1]} 37. Rc1 {[%clk 0:00:15]} 37...
Kd6 {[%clk 0:00:16.6]} 38. g4 {[%clk 0:00:14.9]} 38... Re8 {[%clk 0:00:13.3]}
39. Kg3 {[%clk 0:00:13.9]} 39... g6 {[%clk 0:00:10.9]} 40. h4 {[%clk 0:00:11.6]}
40... f5 {[%clk 0:00:10.5]} 41. Bf3 {[%clk 0:00:10.3]} 41... Rb8 {[%clk
0:00:06.8]} 42. Bg2 {[%clk 0:00:08.3]} 42... Re8 {[%clk 0:00:02.8]} 43. Ra1
{[%clk 0:00:08]} 43... Rb8 {[%clk 0:00:02.6]} 44. Ra6+ {[%clk 0:00:07.9]} 44...
Ke7 {[%clk 0:00:01.8]} 45. h5 {[%clk 0:00:08.2]} 45... Bd6 {[%clk 0:00:02.2]}
46. hxg6 {[%clk 0:00:05]} 46... fxg4 {[%clk 0:00:03.1]} 47. Kxg4 {[%clk
0:00:05.3]} 47... Bc7 {[%clk 0:00:04]} 48. Be4 {[%clk 0:00:05.4]} 48... Kf6
{[%clk 0:00:04.3]} 49. f5 {[%clk 0:00:05.3]} 1-0

[Event "*** SCC Grand Prix: Titled Tuesday Blitz"]
[Site "Chess.com"]
[Date "2020.09.08"]
[Round "2"]
[White "rududuyk"]
[Black "amatatanav"]
[Result "0-1"]
[WhiteElo "2153"]
[BlackElo "2408"]
[TimeControl "180+1"]
[EndTime "10:18:40 PDT"]
[Termination "amatatanav won by resignation"]

1. e4 {[%clk 0:03:00.9]} 1... c5 {[%clk 0:02:59.2]} 2. Nc3 {[%clk 0:02:58.1]}
2... Nc6 {[%clk 0:02:58.2]} 3. f4 {[%clk 0:02:57.1]} 3... e6 {[%clk 0:02:44.4]}
4. Nf3 {[%clk 0:02:56.6]} 4... g6 {[%clk 0:02:33.5]} 5. Bc4 {[%clk 0:02:53.2]}
5... Bg7 {[%clk 0:02:30.4]} 6. O-O {[%clk 0:02:51.6]} 6... Nge7 {[%clk
0:02:26.3]} 7. d3 {[%clk 0:02:51.1]} 7... d5 {[%clk 0:02:17.1]} 8. Bb3 {[%clk
0:02:50.6]} 8... O-O {[%clk 0:02:13.5]} 9. Qe1 {[%clk 0:02:50]} 9... Na5 {[%clk
0:02:01.9]} 10. exd5 {[%clk 0:02:16.2]} 10... exd5 {[%clk 0:01:56.1]} 11. Bxd5
{[%clk 0:02:11.4]} 11... Bxc3 {[%clk 0:01:48.3]} 12. Bxf7+ {[%clk 0:02:07.4]}
12... Rxf7 {[%clk 0:01:49.2]} 13. Qxc3 {[%clk 0:02:07.4]} 13... b6 {[%clk
0:00:58.9]} 14. Ne5 {[%clk 0:01:54.3]} 14... Rf6 {[%clk 0:00:50.4]} 15. Be3
{[%clk 0:01:53.2]} 15... Nd5 {[%clk 0:00:49.4]} 16. Qd2 {[%clk 0:01:44.3]} 16...
Nxe3 {[%clk 0:00:49.1]} 17. Qxe3 {[%clk 0:01:45.2]} 17... Qd4 {[%clk 0:00:48.6]}
18. Qxd4 {[%clk 0:01:40]} 18... cxd4 {[%clk 0:00:49.5]} 19. b4 {[%clk
0:01:39.8]} 19... Nc6 {[%clk 0:00:49.2]} 20. Nc4 {[%clk 0:01:32.7]} 20... Nxb4
{[%clk 0:00:46]} 21. Rf2 {[%clk 0:01:28.4]} 21... Be6 {[%clk 0:00:44.1]} 22. Ne5
{[%clk 0:01:27.4]} 22... Rc8 {[%clk 0:00:42.2]} 23. a3 {[%clk 0:01:19]} 23...
Nd5 {[%clk 0:00:33.8]} 24. g3 {[%clk 0:01:14]} 24... Ne3 {[%clk 0:00:34.1]} 25.
Rc1 {[%clk 0:01:11.7]} 25... Ng4 {[%clk 0:00:33.6]} 26. Re2 {[%clk 0:01:09.2]}
26... Nxe5 {[%clk 0:00:33]} 27. Rxe5 {[%clk 0:01:10.1]} 27... Bf5 {[%clk
0:00:24.7]} 28. Rd5 {[%clk 0:01:08]} 28... Rfc6 {[%clk 0:00:23.2]} 29. Rxd4
{[%clk 0:01:07]} 29... Rxc2 {[%clk 0:00:22.9]} 30. Rxc2 {[%clk 0:01:05.3]} 30...
Rxc2 {[%clk 0:00:23.8]} 31. Rd6 {[%clk 0:00:55.3]} 31... Rc3 {[%clk 0:00:21.9]}
32. d4 {[%clk 0:00:55.3]} 32... Rxa3 {[%clk 0:00:21.9]} 33. Kg2 {[%clk
0:00:54.5]} 33... Be4+ {[%clk 0:00:21.3]} 34. Kh3 {[%clk 0:00:54]} 34... Rd3
{[%clk 0:00:20.6]} 35. Kh4 {[%clk 0:00:53]} 35... h6 {[%clk 0:00:19.6]} 36. g4
{[%clk 0:00:45.7]} 36... a5 {[%clk 0:00:12.5]} 37. Rxb6 {[%clk 0:00:41.4]} 37...
Rxd4 {[%clk 0:00:11.9]} 38. Ra6 {[%clk 0:00:39.3]} 38... a4 {[%clk 0:00:12]} 39.
Kg3 {[%clk 0:00:34.9]} 39... Bc2 {[%clk 0:00:11.9]} 40. h4 {[%clk 0:00:30]}
40... Kf7 {[%clk 0:00:11.9]} 41. h5 {[%clk 0:00:23.1]} 41... gxh5 {[%clk
0:00:12.8]} 42. gxh5 {[%clk 0:00:18.6]} 42... a3 {[%clk 0:00:09.2]} 43. Rxa3
{[%clk 0:00:17.7]} 43... Rd3+ {[%clk 0:00:09.4]} 44. Rxd3 {[%clk 0:00:17.7]}
44... Bxd3 {[%clk 0:00:10.3]} 45. Kf3 {[%clk 0:00:16.9]} 45... Kf6 {[%clk
0:00:11.2]} 46. Ke3 {[%clk 0:00:16.9]} 46... Bf5 {[%clk 0:00:12.1]} 47. Kf3
{[%clk 0:00:16.4]} 47... Bd7 {[%clk 0:00:11.7]} 48. Ke4 {[%clk 0:00:15.7]} 48...
Bc6+ {[%clk 0:00:11.9]} 49. Ke3 {[%clk 0:00:15.6]} 49... Kf5 {[%clk 0:00:12.8]}
50. Kf2 {[%clk 0:00:10.7]} 50... Kxf4 {[%clk 0:00:12.9]} 51. Kg1 {[%clk
0:00:09.6]} 51... Kg5 {[%clk 0:00:13.8]} 52. Kh2 {[%clk 0:00:09.7]} 52... Kxh5
{[%clk 0:00:14.7]} 53. Kh3 {[%clk 0:00:09.8]} 53... Kg5 {[%clk 0:00:15.6]} 54.
Kg3 {[%clk 0:00:09.8]} 54... h5 {[%clk 0:00:16.2]} 55. Kh2 {[%clk 0:00:09.7]}
55... h4 {[%clk 0:00:16.6]} 56. Kh3 {[%clk 0:00:09.9]} 56... Kh5 {[%clk
0:00:17]} 57. Kh2 {[%clk 0:00:09.3]} 57... Kg4 {[%clk 0:00:17.6]} 58. Kg1 {[%clk
0:00:09.1]} 58... Kg3 {[%clk 0:00:18.3]} 0-1

[Event "*** SCC Grand Prix: Titled Tuesday Blitz"]
[Site "Chess.com"]
[Date "2020.09.08"]
[Round "2"]
[White "GadimbayliA"]
[Black "sergeikim"]
[Result "1-0"]
[WhiteElo "2887"]
[BlackElo "2456"]
[TimeControl "180+1"]
[EndTime "10:18:42 PDT"]
[Termination "GadimbayliA won on time"]

1. e4 {[%clk 0:03:00.9]} 1... e5 {[%clk 0:02:59]} 2. Nf3 {[%clk 0:03:00.5]} 2...
Nc6 {[%clk 0:02:59.5]} 3. Nc3 {[%clk 0:03:00.9]} 3... Nf6 {[%clk 0:02:58.4]} 4.
d4 {[%clk 0:03:01.2]} 4... exd4 {[%clk 0:02:58.2]} 5. Nxd4 {[%clk 0:03:02.1]}
5... Bb4 {[%clk 0:02:58.1]} 6. Nxc6 {[%clk 0:03:02.5]} 6... bxc6 {[%clk
0:02:58.8]} 7. Bd3 {[%clk 0:03:03.4]} 7... d5 {[%clk 0:02:58.8]} 8. exd5 {[%clk
0:03:04.3]} 8... Qe7+ {[%clk 0:02:58.6]} 9. Qe2 {[%clk 0:03:01.5]} 9... Qxe2+
{[%clk 0:02:58.9]} 10. Kxe2 {[%clk 0:02:56.1]} 10... Nxd5 {[%clk 0:02:59.8]} 11.
Bd2 {[%clk 0:02:55.1]} 11... a5 {[%clk 0:02:58.6]} 12. Rhe1 {[%clk 0:02:51.9]}
12... Be6 {[%clk 0:02:57.1]} 13. Nxd5 {[%clk 0:02:48.9]} 13... cxd5 {[%clk
0:02:54.9]} 14. Bb5+ {[%clk 0:02:49]} 14... Ke7 {[%clk 0:02:40.8]} 15. c3 {[%clk
0:02:47.6]} 15... Bd6 {[%clk 0:02:38.4]} 16. Kd3 {[%clk 0:02:44.3]} 16... Kf6
{[%clk 0:02:25.8]} 17. Be3 {[%clk 0:02:39]} 17... c5 {[%clk 0:02:24.2]} 18. h4
{[%clk 0:02:36.8]} 18... h6 {[%clk 0:02:23.5]} 19. a4 {[%clk 0:02:33.7]} 19...
Rad8 {[%clk 0:02:14.3]} 20. Rad1 {[%clk 0:02:23.2]} 20... g5 {[%clk 0:02:01]}
21. hxg5+ {[%clk 0:02:11.7]} 21... hxg5 {[%clk 0:02:00.9]} 22. b4 {[%clk
0:02:12.3]} 22... d4 {[%clk 0:01:53.1]} 23. cxd4 {[%clk 0:01:40]} 23... cxb4
{[%clk 0:01:51.3]} 24. d5 {[%clk 0:01:39]} 24... Bf5+ {[%clk 0:01:44.3]} 25. Kc4
{[%clk 0:01:34.8]} 25... Rc8+ {[%clk 0:01:38.9]} 26. Bc6 {[%clk 0:01:34.3]}
26... Kg6 {[%clk 0:01:27.9]} 27. Kb3 {[%clk 0:01:00]} 27... Rb8 {[%clk 0:01:11]}
28. Ba7 {[%clk 0:00:56.2]} 28... Rbc8 {[%clk 0:01:06.3]} 29. Bb6 {[%clk
0:00:55.6]} 29... Bc7 {[%clk 0:01:04.8]} 30. Bc5 {[%clk 0:00:51.5]} 30... Bd8
{[%clk 0:00:34]} 31. g3 {[%clk 0:00:48.6]} 31... g4 {[%clk 0:00:32.8]} 32. Bd4
{[%clk 0:00:44.7]} 32... Bf6 {[%clk 0:00:31]} 33. Bxf6 {[%clk 0:00:40.3]} 33...
Kxf6 {[%clk 0:00:30.8]} 34. Rc1 {[%clk 0:00:41.2]} 34... Rhd8 {[%clk 0:00:28]}
35. Rc5 {[%clk 0:00:39.2]} 35... Rd6 {[%clk 0:00:13.1]} 36. Rxa5 {[%clk
0:00:36.4]} 36... Bd7 {[%clk 0:00:09.3]} 37. Rc1 {[%clk 0:00:22.7]} 37... Bxc6
{[%clk 0:00:05.9]} 38. dxc6 {[%clk 0:00:23.6]} 38... Rcxc6 {[%clk 0:00:06.2]}
39. Rxc6 {[%clk 0:00:24.5]} 39... Rxc6 {[%clk 0:00:06.6]} 40. Rb5 {[%clk
0:00:23.5]} 40... Rc1 {[%clk 0:00:06.6]} 41. Rxb4 {[%clk 0:00:22.3]} 41... Kg5
{[%clk 0:00:05.3]} 42. Rf4 {[%clk 0:00:21.5]} 42... f5 {[%clk 0:00:04.6]} 43. a5
{[%clk 0:00:21.2]} 43... Rb1+ {[%clk 0:00:04.4]} 44. Ka4 {[%clk 0:00:20.5]}
44... Ra1+ {[%clk 0:00:04]} 45. Kb5 {[%clk 0:00:21]} 45... Ra2 {[%clk
0:00:03.9]} 46. a6 {[%clk 0:00:20.5]} 46... Rb2+ {[%clk 0:00:03.9]} 47. Ka5
{[%clk 0:00:18.7]} 47... Ra2+ {[%clk 0:00:03.7]} 48. Ra4 {[%clk 0:00:19]} 1-0